fUSD/lending_fUSD_20260226
["ID","MTS","AMOUNT","RATE_DAILY","PERIOD"]
[406729946,1772124655062,-339.21457322,0.00017327,2]
[406729947,1772124655072,-150.0,0.00017328,2]
[406729948,1772124655082,-150.0,0.0001733,2]
[406729949,1772124655092,-553.32,0.00017342,2]
[406729950,1772124655103,-187.29970089,0.00017345,2]
[406729951,1772124655115,-156.66979557,0.00017345,2]
[406729952,1772124655126,-339.21457322,0.00017345,2]
[406729953,1772124655138,-150.0,0.00017345,2]
[406729954,1772124655149,-150.0,0.00017351,2]
[406729955,1772124655159,-500.0,0.00017355,2]
[406729956,1772124655169,-150.0,0.00017355,2]
[406729957,1772124655179,-1212.0,0.0001736,2]
[406729958,1772124655189,-187.29970089,0.00017364,2]
[406729959,1772124655199,-156.66979557,0.00017364,2]
[406729960,1772124655209,-339.21457322,0.00017364,2]
[406729961,1772124655220,-150.0,0.00017365,2]
[406729962,1772124655235,-150.0,0.0001737,2]
[406729963,1772124655253,-150.0,0.00017372,2]
[406729964,1772124655263,-150.0,0.00017373,2]
[406729965,1772124655273,-150.0,0.00017374,2]
[406729966,1772124655283,-150.0,0.00017374,2]
[406729967,1772124655293,-150.0,0.00017379,2]
[406729968,1772124655303,-187.29970089,0.00017382,2]
[406729969,1772124655315,-156.66979557,0.00017382,2]
[406729970,1772124655326,-339.21457322,0.00017382,2]
[406729971,1772124655335,-150.0,0.00017382,2]
[406729972,1772124655346,-150.0,0.00017393,2]
[406729973,1772124655356,-187.29970089,0.000174,2]
[406729974,1772124655368,-156.66979557,0.000174,2]
[406729975,1772124655378,-150.0,0.000174,2]
[406729976,1772124655388,-339.21457322,0.000174,2]
[406729977,1772124655399,-150.0,0.000174,2]
[406729978,1772124655410,-1100.0,0.000174,6]
[406729979,1772124655423,-150.0,0.00017409,2]
[406729980,1772124655432,-350.0,0.00017413,2]
[406729981,1772124655442,-150.0,0.00017414,2]
[406729982,1772124655452,-150.0,0.00017415,2]
[406729983,1772124655462,-150.0,0.00017418,2]
[406729984,1772124655473,-187.29970089,0.00017418,2]
[406729985,1772124655483,-156.66979557,0.00017418,2]
[406729986,1772124655493,-339.21457322,0.00017418,2]
[406729987,1772124655503,-350.0,0.00017423,2]
[406729988,1772124655517,-150.0,0.00017427,2]
[406729989,1772124655527,-150.0,0.00017435,2]
[406729990,1772124655536,-150.0,0.00017436,2]
[406729991,1772124655546,-187.29970089,0.00017436,2]
[406729992,1772124655556,-156.66979557,0.00017436,2]
[406729993,1772124655566,-339.21457322,0.00017436,2]
[406729994,1772124655575,-150.0,0.00017441,2]
[406729995,1772124655585,-150.0,0.00017452,2]
[406729996,1772124655594,-150.0,0.00017452,2]
[406729997,1772124655602,-187.29970089,0.00017455,2]
[406729998,1772124655612,-156.66979557,0.00017455,2]
[406729999,1772124655621,-339.21457322,0.00017455,2]
[406730000,1772124655630,-150.0,0.00017455,2]
[406730001,1772124655641,-150.0,0.00017456,2]
[406730002,1772124655652,-150.0,0.0001746,2]
[406730003,1772124655662,-150.0,0.0001746,2]
[406730004,1772124655672,-186.0,0.00017461,7]
[406730005,1772124655682,-216.0,0.00017461,7]
[406730006,1772124655692,-150.0,0.00017463,2]
[406730007,1772124655703,-150.0,0.00017471,2]
[406730008,1772124655713,-187.29970089,0.00017473,2]
[406730009,1772124655722,-156.66979557,0.00017473,2]
[406730010,1772124655737,-339.21457322,0.00017473,2]
[406730011,1772124655750,-150.0,0.00017477,2]
[406730012,1772124655760,-150.0,0.00017482,2]
[406730013,1772124655770,-150.0,0.00017486,2]
[406730014,1772124655784,-150.0,0.00017486,2]
[406730015,1772124655793,-150.0,0.0001749,2]
[406730016,1772124655803,-187.29970089,0.00017491,2]
[406730017,1772124655813,-156.66979557,0.00017491,2]
[406730018,1772124655823,-339.21457322,0.00017491,2]
[406730019,1772124655833,-527.0,0.00017492,2]
[406730020,1772124655843,-150.0,0.00017498,2]
[406730021,1772124655852,-1100.0,0.000175,6]
[406730022,1772124655862,-150.0,0.00017503,2]
[406730023,1772124655872,-150.0,0.00017505,2]
[406730024,1772124655882,-187.29970089,0.00017509,2]
[406730025,1772124655891,-156.66979557,0.00017509,2]
[406730026,1772124655901,-339.21457322,0.00017509,2]
[406730027,1772124655914,-150.0,0.00017509,2]
[406730028,1772124655924,-150.0,0.00017516,2]
[406730029,1772124655934,-150.0,0.00017519,2]
[406730030,1772124655943,-150.0,0.00017524,2]
[406730031,1772124655955,-527.0,0.00017526,2]
[406730032,1772124655965,-187.29970089,0.00017527,2]
[406730033,1772124655974,-156.66979557,0.00017527,2]
[406730034,1772124655985,-339.21457322,0.00017527,2]
[406730035,1772124655995,-150.0,0.0001753,2]
[406730036,1772124656006,-150.0,0.0001753,2]
[406730037,1772124656015,-606.4,0.00017534,2]
[406730038,1772124656025,-1000.0,0.00017534,2]
[406730039,1772124656034,-150.0,0.00017536,2]
[406730040,1772124656044,-150.0,0.0001754,2]
[406730041,1772124656054,-150.0,0.00017543,2]
[406730042,1772124656063,-187.29970089,0.00017545,2]
[406730043,1772124656071,-156.66979557,0.00017545,2]
[406730044,1772124656082,-339.21457322,0.00017545,2]
[406730045,1772124656091,-150.0,0.0001755,2]
[406730046,1772124656101,-150.0,0.0001756,2]
[406730047,1772124656112,-187.29970089,0.00017564,2]
[406730048,1772124656122,-156.66979557,0.00017564,2]
[406730049,1772124656134,-339.21457322,0.00017564,2]
[406730050,1772124656144,-150.0,0.00017564,2]
[406730051,1772124656154,-150.0,0.00017566,2]
[406730052,1772124656164,-150.0,0.0001757,2]
[406730053,1772124656173,-150.0,0.00017576,2]
[406730054,1772124656183,-150.0,0.00017581,2]
[406730055,1772124656193,-187.29970089,0.00017582,2]
[406730056,1772124656202,-156.66979557,0.00017582,2]
[406730057,1772124656213,-339.21457322,0.00017582,2]
[406730058,1772124656222,-150.0,0.00017591,2]
[406730059,1772124656238,-150.0,0.00017595,2]
[406730060,1772124656256,-150.0,0.00017597,2]
[406730061,1772124656265,-187.29970089,0.000176,2]
[406730062,1772124656275,-156.66979557,0.000176,2]
[406730063,1772124656284,-339.21457322,0.000176,2]
[406730064,1772124656293,-1100.0,0.000176,6]
[406730065,1772124656303,-150.0,0.00017602,2]
[406730066,1772124656312,-150.0,0.00017609,2]
[406730067,1772124656321,-150.0,0.00017609,2]
[406730068,1772124656332,-187.29970089,0.00017618,2]
[406730069,1772124656342,-156.66979557,0.00017618,2]
[406730070,1772124656352,-339.21457322,0.00017618,2]
[406730071,1772124656361,-150.0,0.00017618,2]
[406730072,1772124656371,-150.0,0.00017623,2]
[406730073,1772124656381,-150.0,0.00017624,2]
[406730074,1772124656391,-150.0,0.00017628,2]
[406730075,1772124656400,-150.0,0.00017629,2]
[406730076,1772124656410,-187.29970089,0.00017636,2]
[406730077,1772124656420,-156.66979557,0.00017636,2]
[406730078,1772124656430,-339.21457322,0.00017636,2]
[406730079,1772124656441,-150.0,0.0001764,2]
[406730080,1772124656451,-150.0,0.0001764,2]
[406730081,1772124656461,-1833.85447521,0.0001764,2]
[406730082,1772124656470,-150.0,0.00017644,2]
[406730083,1772124656481,-150.0,0.00017645,2]
[406730084,1772124656497,-527.0,0.00017647,2]
[406730085,1772124656509,-151.0,0.00017647,2]
[406730086,1772124656519,-150.0,0.00017651,2]
[406730087,1772124656529,-187.29970089,0.00017655,2]
[406730088,1772124656540,-156.66979557,0.00017655,2]
[406730089,1772124656554,-339.21457322,0.00017655,2]
[406730090,1772124656564,-152.0,0.00017663,8]
[406730091,1772124656576,-150.0,0.00017665,2]
[406730092,1772124656586,-187.29970089,0.00017673,2]
[406730093,1772124656596,-156.66979557,0.00017673,2]
[406730094,1772124656606,-339.21457322,0.00017673,2]
[406730095,1772124656616,-150.0,0.00017673,2]
[406730096,1772124656625,-150.0,0.00017678,2]
[406730097,1772124656635,-150.0,0.00017682,2]
[406730098,1772124656742,-150.0,0.00017685,2]
[406730099,1772124656755,-150.0,0.00017686,2]
[406730100,1772124656766,-150.0,0.00017687,2]
[406730101,1772124656776,-150.0,0.00017687,2]
[406730102,1772124656785,-150.0,0.0001769,2]
[406730103,1772124656794,-187.29970089,0.00017691,2]
[406730104,1772124656804,-156.66979557,0.00017691,2]
[406730105,1772124656814,-339.21457322,0.00017691,2]
[406730106,1772124656823,-150.0,0.000177,2]
[406730107,1772124656832,-1100.0,0.000177,6]
[406730108,1772124656842,-150.0,0.00017704,2]
[406730109,1772124656852,-150.0,0.00017707,2]
[406730110,1772124656862,-187.29970089,0.00017709,2]
[406730111,1772124656871,-156.66979557,0.00017709,2]
[406730112,1772124656880,-339.21457322,0.00017709,2]
[406730113,1772124656889,-500.0,0.00017726,7]
[406730114,1772124656899,-500.0,0.00017726,7]
[406730115,1772124656910,-700.0,0.00017726,7]
[406730116,1772124656920,-258.0,0.00017727,7]
[406730117,1772124656929,-187.29970089,0.00017727,2]
[406730118,1772124656938,-156.66979557,0.00017727,2]
[406730119,1772124656949,-339.21457322,0.00017727,2]
[406730120,1772124656959,-150.0,0.00017727,2]
[406730121,1772124656968,-150.0,0.00017728,2]
[406730122,1772124656978,-150.0,0.0001773,2]
[406730123,1772124656998,-27067.80659463,0.0001773,2]
[406730124,1772124657011,-693.94657191,0.0001773,2]
[406730125,1772124657021,-150.0,0.00017731,2]
[406730126,1772124657030,-150.0,0.00017734,2]
[406730127,1772124657040,-150.0,0.00017735,2]
[406730128,1772124657049,-150.0,0.00017743,2]
[406730129,1772124657058,-150.0,0.00017743,2]
[406730130,1772124657068,-187.29970089,0.00017745,2]
[406730131,1772124657077,-156.66979557,0.00017745,2]
[406730132,1772124657088,-339.21457322,0.00017745,2]
[406730133,1772124657098,-150.0,0.00017749,2]
[406730134,1772124657108,-150.0,0.00017752,2]
[406730135,1772124657117,-150.0,0.00017755,2]
[406730136,1772124657127,-350.0,0.00017757,3]
[406730137,1772124657137,-150.0,0.00017758,2]
[406730138,1772124657146,-187.29970089,0.00017764,2]
[406730139,1772124657157,-156.66979557,0.00017764,2]
[406730140,1772124657168,-339.21457322,0.00017764,2]
[406730141,1772124657178,-150.0,0.00017765,2]
[406730142,1772124657187,-150.0,0.00017765,2]
[406730143,1772124657197,-150.0,0.0001777,2]
[406730144,1772124657206,-150.0,0.00017775,2]
[406730145,1772124657215,-187.29970089,0.00017782,2]
[406730146,1772124657225,-156.66979557,0.00017782,2]
[406730147,1772124657245,-339.21457322,0.00017782,2]
[406730148,1772124657254,-150.0,0.00017782,2]
[406730149,1772124657266,-150.0,0.00017785,2]
[406730150,1772124657276,-150.0,0.00017788,2]
[406730151,1772124657286,-150.0,0.00017791,2]
[406730152,1772124657296,-1000.0,0.000178,2]
[406730153,1772124657306,-187.29970089,0.000178,2]
[406730154,1772124657315,-156.66979557,0.000178,2]
[406730155,1772124657325,-339.21457322,0.000178,2]
[406730156,1772124657335,-1135.0,0.000178,6]
[406730157,1772124657344,-606.4,0.00017808,2]
[406730158,1772124657353,-500.0,0.00017808,2]
[406730159,1772124657363,-530.82825098,0.00017808,2]
[406730160,1772124657372,-530.82825098,0.00017808,2]
[406730161,1772124657382,-530.82825098,0.00017808,2]
[406730162,1772124657391,-530.82825098,0.00017808,2]
[406730163,1772124657400,-530.82825098,0.00017808,2]
[406730164,1772124657410,-530.82825098,0.00017808,2]
[406730165,1772124657419,-530.82825098,0.00017808,2]
[406730166,1772124657429,-530.82825098,0.00017808,2]
[406730167,1772124657438,-530.82825098,0.00017808,2]
[406730168,1772124657448,-530.82825098,0.00017808,2]
[406730169,1772124657458,-530.82825098,0.00017808,2]
[406730170,1772124657468,-530.82825098,0.00017808,2]
[406730171,1772124657477,-530.82825098,0.00017808,2]
[406730172,1772124657493,-530.82825098,0.00017808,2]
[406730173,1772124657503,-530.82825098,0.00017808,2]
[406730174,1772124657512,-530.82825098,0.00017808,2]
[406730175,1772124657521,-530.82825098,0.00017808,2]
[406730176,1772124657531,-530.82825098,0.00017808,2]
[406730177,1772124657540,-530.82825098,0.00017808,2]
[406730178,1772124657550,-530.82825098,0.00017808,2]
[406730179,1772124657559,-530.82825098,0.00017808,2]
[406730180,1772124657568,-876.8509392,0.00017808,2]
[406730181,1772124657578,-876.8509392,0.00017808,2]
[406730182,1772124657587,-876.8509392,0.00017808,2]
[406730183,1772124657597,-876.8509392,0.00017808,2]
[406730184,1772124657606,-876.8509392,0.00017808,2]
[406730185,1772124657616,-876.8509392,0.00017808,2]
[406730186,1772124657626,-800.0,0.00017808,2]
[406730187,1772124657635,-1000.0,0.00017808,2]
[406730188,1772124657645,-150.0,0.00017809,2]
[406730189,1772124657654,-150.0,0.00017812,2]
[406730190,1772124657663,-150.0,0.00017812,2]
[406730191,1772124657672,-150.0,0.00017814,2]
[406730192,1772124657682,-177.293163,0.00017818,7]
[406730193,1772124657691,-187.29970089,0.00017818,2]
[406730194,1772124657700,-156.66979557,0.00017818,2]
[406730195,1772124657709,-339.21457322,0.00017818,2]
[406730196,1772124657718,-858.15323007,0.0001782,10]
[406730197,1772124657727,-150.0,0.0001782,2]
[406730198,1772124657742,-150.0,0.0001782,2]
[406730199,1772124657752,-158.27050591,0.0001782,2]
[406730200,1772124657761,-350.0,0.00017823,2]
[406730201,1772124657770,-500.0,0.00017829,21]
[406730202,1772124657781,-500.0,0.00017829,21]
[406730203,1772124657791,-500.0,0.00017829,21]
[406730204,1772124657801,-384.61162915,0.00017829,21]
[406730205,1772124657809,-137550.62068451,0.0001783,2]
[406730206,1772124657819,-151.0,0.0001783,2]
[406730207,1772124657829,-151.0,0.0001783,2]
[406730208,1772124657838,-151.0,0.0001783,2]
[406730209,1772124657847,-151.0,0.0001783,2]
[406730210,1772124657856,-150.0,0.00017833,2]
[406730211,1772124657866,-187.29970089,0.00017836,2]
[406730212,1772124657875,-156.66979557,0.00017836,2]
[406730213,1772124657884,-339.21457322,0.00017836,2]
[406730214,1772124657894,-150.0,0.00017836,2]
[406730215,1772124657903,-150.0,0.00017837,2]
[406730216,1772124657918,-150.0,0.00017839,2]
[406730217,1772124657927,-150.0,0.00017841,2]
[406730218,1772124657937,-150.0,0.00017843,2]
[406730219,1772124657946,-150.0,0.00017843,2]
[406730220,1772124657958,-239.0611416,0.00017847,2]
[406730221,1772124657967,-527.0,0.00017848,2]
[406730222,1772124657976,-150.0,0.00017853,2]
[406730223,1772124657992,-187.29970089,0.00017855,2]
[406730224,1772124658001,-156.66979557,0.00017855,2]
[406730225,1772124658014,-339.21457322,0.00017855,2]
[406730226,1772124658023,-500.0,0.00017863,2]
[406730227,1772124658034,-150.0,0.00017864,2]
[406730228,1772124658044,-150.0,0.00017865,2]
[406730229,1772124658053,-150.0,0.00017866,2]
[406730230,1772124658063,-187.29970089,0.00017873,2]
[406730231,1772124658072,-156.66979557,0.00017873,2]
[406730232,1772124658083,-339.21457322,0.00017873,2]
[406730233,1772124658092,-150.0,0.00017874,2]
[406730234,1772124658102,-150.0,0.00017876,2]
[406730235,1772124658111,-187.29970089,0.00017891,2]
[406730236,1772124658121,-156.66979557,0.00017891,2]
[406730237,1772124658131,-339.21457322,0.00017891,2]
[406730238,1772124658141,-150.0,0.00017891,2]
[406730239,1772124658151,-150.0,0.00017893,2]
[406730240,1772124658160,-150.0,0.00017894,2]
[406730241,1772124658169,-150.0,0.00017895,2]
[406730242,1772124658179,-391.644255,0.00017899,2]
[406730243,1772124658188,-693.3919763,0.00017899,3]
[406730244,1772124658197,-719.04747942,0.00017899,3]
[406730245,1772124658206,-745.65223616,0.00017899,3]
[406730246,1772124658218,-773.2413689,0.00017899,3]
[406730247,1772124658228,-801.85129955,0.00017899,3]
[406730248,1772124658242,-831.51979763,0.00017899,3]
[406730249,1772124658251,-862.28603014,0.00017899,3]
[406730250,1772124658261,-894.19061326,0.00017899,3]
[406730251,1772124658369,-927.27566595,0.00017899,3]
[406730252,1772124658379,-961.58486559,0.00017899,3]
[406730253,1772124658388,-527.0,0.00017899,2]
[406730254,1772124658398,-25000.0,0.000179,3]
[406730255,1772124658409,-4991.64015429,0.000179,2]
[406730256,1772124658418,-367.75891248,0.000179,2]
[406730257,1772124658428,-3707.87300559,0.000179,2]
[406730258,1772124658438,-21846.65485425,0.000179,2]
[406730259,1772124658448,-196.32932638,0.000179,2]
[406730260,1772124658458,-6759.0,0.000179,2]
[406730261,1772124658468,-187.29970089,0.00017909,2]
[406730262,1772124658477,-156.66979557,0.00017909,2]
[406730263,1772124658491,-339.21457322,0.00017909,2]
[406730264,1772124658501,-150.0,0.0001791,2]
[406730265,1772124658511,-1034.1174351,0.00017913,2]
[406730266,1772124658521,-150.0,0.00017916,2]
[406730267,1772124658531,-500.0,0.00017918,2]
[406730268,1772124658540,-150.0,0.00017918,2]
[406730269,1772124658550,-150.0,0.00017919,2]
[406730270,1772124658560,-150.0,0.00017922,2]
[406730271,1772124658570,-150.0,0.00017922,2]
[406730272,1772124658593,-187.29970089,0.00017927,2]
[406730273,1772124658603,-156.66979557,0.00017927,2]
[406730274,1772124658614,-339.21457322,0.00017927,2]
[406730275,1772124658626,-150.0,0.00017937,2]
[406730276,1772124658636,-150.0,0.00017938,2]
[406730277,1772124658647,-527.0,0.00017944,2]
[406730278,1772124658657,-187.29970089,0.00017945,2]
[406730279,1772124658669,-156.66979557,0.00017945,2]
[406730280,1772124658682,-339.21457322,0.00017945,2]
[406730281,1772124658693,-150.0,0.00017945,2]
[406730282,1772124658704,-150.0,0.00017946,2]
[406730283,1772124658715,-150.0,0.00017947,2]
[406730284,1772124658724,-350.0,0.00017949,2]
[406730285,1772124658742,-150.0,0.00017955,2]
[406730286,1772124658753,-150.0,0.00017958,2]
[406730287,1772124658763,-187.29970089,0.00017964,2]
[406730288,1772124658776,-156.66979557,0.00017964,2]
[406730289,1772124658786,-339.21457322,0.00017964,2]
[406730290,1772124658797,-5800.0,0.00017965,2]
[406730291,1772124658808,-500.0,0.0001797,2]
[406730292,1772124658818,-500.0,0.0001797,2]
[406730293,1772124658828,-500.0,0.0001797,2]
[406730294,1772124658838,-500.0,0.0001797,2]
[406730295,1772124658849,-500.0,0.0001797,2]
[406730296,1772124658859,-631.8277679,0.0001797,2]
[406730297,1772124658869,-1000.0,0.0001797,2]
[406730298,1772124658879,-1000.0,0.0001797,2]
[406730299,1772124658889,-1000.0,0.0001797,2]
[406730300,1772124658899,-1000.0,0.0001797,2]
[406730301,1772124658914,-1000.0,0.0001797,2]
[406730302,1772124658924,-1000.0,0.0001797,2]
[406730303,1772124658935,-1000.0,0.0001797,2]
[406730304,1772124658946,-500.0,0.00017972,2]
[406730305,1772124658960,-174.26065421,0.00017973,2]
[406730306,1772124658975,-500.0,0.00017973,2]
[406730307,1772124658990,-500.0,0.00017973,2]
[406730308,1772124659002,-150.0,0.00017973,2]
[406730309,1772124659013,-150.0,0.00017973,2]
[406730310,1772124659023,-5800.0,0.00017973,2]
[406730311,1772124659034,-150.0,0.00017979,2]
[406730312,1772124659044,-187.29970089,0.00017982,2]
[406730313,1772124659058,-156.66979557,0.00017982,2]
[406730314,1772124659069,-339.21457322,0.00017982,2]
[406730315,1772124659080,-5800.0,0.00017982,2]
[406730316,1772124659094,-500.0,0.00017982,2]
[406730317,1772124659105,-1070.62307231,0.00017987,2]
[406730318,1772124659116,-5800.0,0.0001799,2]
[406730319,1772124659126,-300.0,0.00017996,2]
[406730320,1772124659136,-666.0,0.00017996,2]
[406730321,1772124659146,-300.0,0.00017996,2]
[406730322,1772124659156,-662.41100623,0.00017996,2]
[406730323,1772124659167,-30000.0,0.00017997,2]
[406730324,1772124659181,-27477.82493153,0.00017997,3]
[406730325,1772124659192,-14198.81885487,0.00017997,4]
[406730326,1772124659202,-459684.3663998,0.00017997,2]
[406730327,1772124659213,-4325.7297526,0.00017997,2]
[406730328,1772124659223,-38307.0305333,0.00017997,2]
[406730329,1772124659239,-16777.4188032,0.00017997,2]
[406730330,1772124659249,-114921.0916,0.00017997,2]
[406730331,1772124659260,-151.0,0.00017997,2]
[406730332,1772124659270,-151.0,0.00017997,2]
[406730333,1772124659280,-151.0,0.00017997,2]
[406730334,1772124659290,-4578.8466415,0.00017997,2]
[406730335,1772124659301,-151.0,0.00017997,2]
[406730336,1772124659311,-151.0,0.00017997,2]
[406730337,1772124659321,-181.386797,0.00017997,2]
[406730338,1772124659332,-181.386797,0.00017997,2]
[406730339,1772124659342,-181.386797,0.00017997,2]
[406730340,1772124659353,-181.386797,0.00017997,2]
[406730341,1772124659363,-300.0,0.00017998,2]
[406730342,1772124659373,-5800.0,0.00017999,2]
[406730343,1772124659383,-150.0,0.00017999,2]
[406730344,1772124659394,-155.07011647,0.00017999,2]
[406730345,1772124659406,-261.13165414,0.00018,2]
[406730346,1772124659419,-187.29970089,0.00018,2]
[406730347,1772124659430,-150.97321777,0.00018,2]
[406730348,1772124659440,-154.74737258,0.00018,2]
[406730349,1772124659451,-157.40345656,0.00018,2]
[406730350,1772124659461,-152.29278869,0.00018,2]
[406730351,1772124659471,-152.3043994,0.00018,2]
[406730352,1772124659487,-156.66979557,0.00018,2]
[406730353,1772124659497,-150.75829045,0.00018,2]
[406730354,1772124659507,-339.21457322,0.00018,2]
[406730355,1772124659517,-151.86049168,0.00018,2]
[406730356,1772124659527,-155.2688129,0.00018,2]
[406730357,1772124659537,-234.96081493,0.00018,2]
[406730358,1772124659546,-158.03687726,0.00018,2]
[406730359,1772124659557,-253.52975104,0.00018,2]
[406730360,1772124659568,-156.94021525,0.00018,2]
[406730361,1772124659578,-2068422.80860816,0.00018,2]
[406730362,1772124660293,-8287.51270609,0.00012684,2]
[406730363,1772124660341,-2076.8837291,0.00012684,2]
[406730364,1772124660361,-5442.69411364,0.00018,2]
[406730365,1772124660383,-18362.77018867,0.00018,2]
[406730366,1772124660405,-48773.64466022,0.00018,2]
[406730367,1772124660433,-384024.04148861,0.00018,2]
[406730368,1772124802505,500.0,8.7e-05,3]
[406730369,1772124804617,1100.0,8.8e-05,3]
[406730370,1772124806714,1600.0,8.9e-05,3]
[406730371,1772124808819,2200.0,9e-05,3]
[406730394,1772125646970,500.0,9e-05,3]
[406730396,1772125698620,500.0,0.0001812,120]
[406730513,1772125832276,-316.76030228,8.219e-05,2]
[406730516,1772125832297,-2586.31969772,8.219e-05,2]
[406730517,1772125832308,-365.57,8.219e-05,2]
[406730518,1772125832317,-300.0,8.221e-05,2]
[406730520,1772125832327,-126.71302203,8.222e-05,2]
[406730521,1772125832339,-68.28697797,8.222e-05,2]
[406730523,1772125832348,-1200.0,8.225e-05,2]
[406730524,1772125832357,-530.68050394,8.226e-05,2]
[406730526,1772125832377,-595.8,8.226e-05,2]
[406730537,1772125838153,-373.51949606,8.226e-05,2]
[406730538,1772125838164,-300.0,8.227e-05,2]
[406730539,1772125838174,-300.0,8.227e-05,2]
[406730540,1772125838184,-376.77167407,8.227e-05,2]
[406730541,1772125838195,-195.0,8.233e-05,2]
[406730542,1772125838206,-195.0,8.233e-05,2]
[406730543,1772125838215,-97.26882987,8.233e-05,2]
[406730544,1772125838227,-97.73117013,8.233e-05,2]
[406730545,1772125838237,-1000.0,8.249e-05,2]
[406730546,1772125838247,-500.0,8.318e-05,2]
[406730547,1772125838256,-2331.03,8.359e-05,2]
[406730548,1772125838266,-1170.42,8.4e-05,2]
[406730550,1772125838275,-500.0,8.463e-05,2]
[406730552,1772125838285,-266.93,8.5e-05,2]
[406730554,1772125838295,-540.832,8.529e-05,2]
[406730556,1772125838310,-1502.82666669,8.529e-05,2]
[406730559,1772125838320,-150.0,8.529e-05,2]
[406730560,1772125838329,-41988.43206138,8.53e-05,2]
[406730562,1772125838342,-753.89,8.6e-05,2]
[406730564,1772125838352,-365.57,8.676e-05,2]
[406730566,1772125838362,-195.0,9.041e-05,2]
[406730568,1772125838372,-300.0,9.041e-05,2]
[406730571,1772125838382,-1680.0,9.047e-05,2]
[406730573,1772125838396,-4133.1798,9.08e-05,2]
[406730575,1772125838405,-365.57,9.132e-05,2]
[406730577,1772125838417,-89535.6773,9.18e-05,2]
[406730579,1772125838427,-454.3546,9.18e-05,2]
[406730581,1772125838437,-2500.0,9.18e-05,2]
[406730583,1772125838446,-1000.0,9.28e-05,2]
[406730585,1772125838456,-32883.6844,9.281e-05,2]
[406730587,1772125838466,-1170.42,9.45e-05,2]
[406730589,1772125838475,-162.43895648,9.452e-05,2]
[406730591,1772125838484,-150.0,9.452e-05,2]
[406730593,1772125838494,-150.0,9.452e-05,2]
[406730595,1772125838503,-150.0,9.452e-05,2]
[406730597,1772125838513,-150.0,9.452e-05,2]
[406730599,1772125838522,-150.0,9.452e-05,2]
[406730601,1772125838532,-177.293163,9.589e-05,2]
[406730603,1772125838541,-365.57,9.589e-05,2]
[406730605,1772125838551,-150.0,9.726e-05,2]
[406730607,1772125838560,-150.0,9.726e-05,2]
[406730609,1772125838570,-150.0,9.726e-05,2]
[406730611,1772125838579,-150.0,9.726e-05,2]
[406730613,1772125838591,-150.0,9.726e-05,2]
[406730615,1772125838601,-150.0,9.726e-05,2]
[406730617,1772125838611,-150.0,9.726e-05,2]
[406730619,1772125838621,-150.0,9.726e-05,2]
[406730621,1772125838631,-150.0,9.726e-05,2]
[406730623,1772125838640,-500.0,9.726e-05,2]
[406730625,1772125838649,-150.0,9.781e-05,2]
[406730627,1772125838658,-150.0,9.781e-05,2]
[406730629,1772125838668,-69461.8304039,9.781e-05,7]
[406730631,1772125838678,-205.0,9.8e-05,2]
[406730633,1772125838687,-250.0,9.836e-05,2]
[406730635,1772125838697,-31110.78105374,9.95e-05,2]
[406730637,1772125838707,-2351.0,9.952e-05,2]
[406730639,1772125838716,-204.48,9.96e-05,2]
[406730641,1772125838726,-200.0,0.0001,2]
[406730643,1772125838736,-151.0,0.0001,2]
[406730645,1772125838746,-151.0,0.0001,2]
[406730647,1772125838755,-151.0,0.0001,2]
[406730649,1772125838765,-151.0,0.0001,2]
[406730651,1772125838774,-151.0,0.0001,2]